bitfinex-derivatives/quotes_ETHF0:USTF0_20251021
["timestamp","ask_amount","ask_price","bid_price","bid_amount"]
[1761070168040,0.44829,4013.6,4013.5,13.3423]
[1761070169738,0.44829,4013.6,4013.5,13.7906]
[1761070170444,0.44829,4013.6,4013.5,13.3423]
[1761070170742,0.44829,4013.6,4013.5,13.7906]
[1761070171443,0.44829,4013.6,4013.5,13.3423]
[1761070172744,0.44829,4013.6,4013.5,13.7906]
[1761070174147,0.44829,4013.6,4013.5,13.3423]
[1761070174843,0.70009,4013.6,4013.5,13.3423]
[1761070175749,0.96569,4013.6,4013.5,13.3423]
[1761070175949,1.35998,4012.8,4012.7,0.6397]
[1761070176245,0.89448244,4013.6,4013.5,1.0626]
[1761070176548,0.44828,4013.7,4013.6,0.9104]
[1761070177037,9.50524,4014.0,4013.9,0.9104]
[1761070177242,3.2078,4014.3,4014.2,0.5211]
[1761070177443,3.2078,4014.3,4014.2,0.9104]
[1761070178041,3.7252,4014.3,4014.2,0.9104]
[1761070178243,0.96567,4013.8,4013.7,0.5211]
[1761070178543,4.56767,4013.8,4013.7,0.5211]
[1761070178746,1.35989,4013.6,4013.5,0.6397]
[1761070179151,3.2078,4013.8,4013.6,0.3893]
[1761070179345,3.65607,4013.8,4013.7,0.2504]
[1761070179549,3.65607,4013.8,4013.7,0.9104]
[1761070179851,3.90787,4013.8,4013.7,0.9104]
[1761070180345,4.17347,4013.8,4013.7,0.9104]
[1761070180852,4.56767,4013.8,4013.7,0.9104]
[1761070181748,4.17347,4013.8,4013.7,0.9104]
[1761070183151,4.56767,4013.8,4013.7,0.6397]
[1761070185151,1.35989,4013.6,4013.5,0.6397]
[1761070185348,0.44829,4013.6,4013.5,1.0626]
[1761070186054,0.70009,4013.6,4013.5,1.0626]
[1761070187257,0.44828,4013.7,4013.6,0.9104]
[1761070187860,0.44828,4013.7,4013.6,0.5211]
[1761070188247,0.70008,4013.7,4013.6,0.5211]
[1761070188453,0.70008,4013.7,4013.6,0.9104]
[1761070189056,0.96568,4013.7,4013.6,0.9104]
[1761070189359,0.96568,4013.7,4013.6,1.35869]
[1761070189559,0.96568,4013.7,4013.6,0.9104]
[1761070191757,4.81055244,4013.8,4013.7,0.8462]
[1761070191958,4.15867,4013.8,4013.7,0.8462]
[1761070192753,0.95087,4013.8,4013.7,0.8462]
[1761070192954,0.70827,4013.8,4013.7,0.8462]
[1761070193752,1.3227,4013.5,4013.4,9.4197]
[1761070193947,4.5305,4013.5,4013.4,9.9022]
[1761070194161,4.1587,4013.5,4013.4,9.9022]
[1761070195560,3.2078,4013.5,4013.4,10.35051]
[1761070195953,3.6561,4013.5,4013.4,10.35051]
[1761070196457,3.6561,4013.5,4013.4,9.9022]
[1761070196658,3.9161,4013.5,4013.4,9.9022]
[1761070197260,3.6561,4013.5,4013.4,9.9022]
[1761070199264,3.2078,4013.5,4013.4,10.35051]
[1761070199468,0.44828,4013.7,4013.6,0.8462]
[1761070200057,0.70828,4013.7,4013.6,0.8462]
[1761070200464,1.60393134,4013.9,4013.8,0.8462]
[1761070200671,1.32265,4013.9,4013.8,0.3637]
[1761070200968,1.32269,4013.6,4013.5,0.4825]
[1761070201168,4.53049,4013.6,4013.5,9.6793]
[1761070201371,4.53049,4013.6,4013.5,9.046]
[1761070201569,4.53049,4013.6,4013.5,9.6569]
[1761070201768,5.4262689,4013.6,4013.5,9.6569]
[1761070201968,5.4262689,4013.6,4013.5,9.046]
[1761070202563,5.4262689,4013.6,4013.5,9.6569]
[1761070202769,5.4262689,4013.6,4013.5,10.043]
[1761070202960,4.15869,4013.6,4013.5,10.043]
[1761070204074,4.15869,4013.6,4012.8,3.2078]
[1761070204075,0.70834,4013.1,4013.0,0.6347]
[1761070204373,1.3228,4012.6,4012.5,0.63738192]
[1761070204560,5.42640606,4012.6,4012.5,0.00268192]
[1761070204764,4.5306,4012.6,4012.5,0.00268192]
[1761070205468,4.1588,4012.6,4012.5,0.99968192]
[1761070205667,3.6562,4012.6,4012.5,0.99968192]
[1761070206175,1.3228,4012.6,4012.5,0.36638192]
[1761070206370,4.5306,4012.6,4012.5,0.84888192]
[1761070206576,4.5306,4012.6,4012.5,0.99968192]
[1761070206577,4.1588,4012.6,4012.5,0.99968192]
[1761070206966,0.3718,4011.7,4011.3,0.3637]
[1761070207167,1.32293,4011.4,4011.3,0.6109]
[1761070207972,1.32301,4010.7,4010.6,3.455]
[1761070208280,0.8744,4010.7,4010.6,3.45756891]
[1761070208482,0.8744,4010.7,4010.6,4.05656891]
[1761070208775,0.8744,4010.7,4010.6,0.00256891]
[1761070208979,0.26,4009.6,4009.5,0.997]
[1761070209178,0.26,4010.0,4009.9,0.6109]
[1761070209382,0.3718,4009.9,4009.1,3.2078]
[1761070209579,0.8744,4009.1,4009.0,0.3637]
[1761070209775,3.2078,4009.5,4008.7,0.3637]
[1761070209776,0.82061,4009.0,4008.7,0.3637]
[1761070209978,0.3718,4008.9,4008.7,0.36642699]
[1761070210185,3.2078,4009.5,4008.8,0.3637]
[1761070210386,0.3718,4009.4,4008.8,0.3637]
[1761070211380,0.3718,4008.4,4007.8,0.38865134]
[1761070211590,3.2078,4008.7,4008.1,0.3637]
[1761070212180,0.89429751,4009.7,4008.0,0.5997]
[1761070212181,0.3718,4009.3,4008.6,0.5145]
[1761070212380,4.1691814,4009.6,4009.2,0.3637]
[1761070212381,0.3718,4009.5,4009.2,0.3637]
[1761070212775,0.37407488,4009.5,4009.2,0.3637]
[1761070213489,0.37407488,4009.5,4008.9,0.3637]
[1761070213686,3.2078,4009.1,4008.9,0.3637]
[1761070213986,3.5796,4009.1,4008.9,0.3637]
[1761070214182,3.5796,4009.1,4008.6,4.803]
[1761070214183,0.3718,4009.0,4008.6,4.803]
[1761070214380,0.82069,4008.2,4007.4,0.1508]
[1761070214585,0.3718,4008.0,4007.4,0.5145]
[1761070214890,0.3718,4008.0,4007.8,0.38865134]
[1761070215085,0.3718,4007.9,4007.4,0.44898]
[1761070215283,0.3718,4007.3,4006.5,0.44908]
[1761070215485,0.3718,4007.1,4006.2,12.4056]
[1761070215690,0.3718,4007.1,4006.3,0.4491]
[1761070215885,0.3718,4007.1,4006.4,0.44908]
[1761070216084,0.3718,4007.1,4006.5,0.44908]
[1761070216284,0.3718,4007.1,4006.6,0.44906]
[1761070216478,0.3718,4007.1,4006.7,0.44905]
[1761070217086,0.3718,4007.1,4006.8,0.81274]
[1761070217291,0.3718,4007.1,4006.8,0.3637]
[1761070217677,0.3718,4007.1,4006.4,4.37356926]
[1761070217678,3.2078,4007.2,4007.1,0.3637]
[1761070217878,3.2078,4007.2,4006.7,3.2078]
[1761070217879,0.3718,4007.1,4006.8,0.81274]
[1761070218193,0.3718,4007.1,4006.7,0.3637]
[1761070218580,0.3908,4007.0,4006.6,0.44907]
[1761070218784,0.3908,4006.9,4006.6,0.44907]
[1761070218988,0.3908,4006.9,4006.4,0.00256926]
[1761070219289,0.3908,4006.7,4006.5,5.016]
[1761070219696,0.3908,4006.6,4006.5,5.016]
[1761070219990,0.39337448,4006.6,4006.5,5.016]
[1761070220380,0.39337448,4006.6,4006.5,5.3943]
[1761070220581,0.00257448,4006.6,4006.5,5.3943]
[1761070220988,0.00257448,4006.6,4006.5,10.3943]
[1761070221695,3.2078,4007.4,4006.9,0.3846]
[1761070221886,3.2078,4007.4,4007.3,0.83359]
[1761070222281,0.3877,4007.3,4007.2,0.449]
[1761070222486,0.3877,4007.2,4007.1,0.83361]
[1761070223795,0.3877,4007.2,4007.1,9.91461]
[1761070224494,0.3877,4007.2,4007.1,9.4656]
[1761070224695,0.3877,4007.2,4007.1,9.081]
[1761070224992,0.3877,4007.2,4007.1,9.4656]
[1761070225497,0.00248768,4007.3,4007.2,0.8336]
[1761070227195,0.00248768,4007.3,4007.2,9.9096]
[1761070228088,0.00248768,4007.3,4007.2,9.9066]
[1761070229096,3.2078,4007.9,4007.8,0.83354]
[1761070229394,0.83659,4008.2,4008.0,0.8335]
[1761070229593,0.3877,4008.1,4008.0,0.83351]
[1761070229897,3.2078,4008.4,4008.3,0.83348]
[1761070230199,3.2078,4008.9,4008.5,0.83345]
[1761070230399,0.3877,4008.6,4008.5,0.83345]
[1761070231603,0.3877,4008.4,4007.7,1.12237]
[1761070231792,0.3877,4008.2,4008.1,0.44889]
[1761070232095,0.3877,4007.9,4007.3,3.2078]
[1761070232303,0.3877,4007.9,4007.8,9.51294]
[1761070232597,0.3877,4007.9,4007.8,9.89754]
[1761070232898,3.5955,4008.3,4007.8,6.84643]
[1761070233090,0.3877,4008.2,4008.1,0.4489]
[1761070233396,0.83659,4008.2,4008.1,0.4489]
[1761070233699,0.3877,4008.2,4008.1,0.4489]
[1761070233904,0.44891,4008.1,4007.9,0.44892]
[1761070234198,0.5478,4008.1,4007.8,6.39749]
[1761070234392,0.2716,4007.9,4007.8,7.09393]
[1761070234588,0.3877,4007.9,4007.8,7.34143]
[1761070234894,0.5459,4008.0,4007.9,0.94392]
[1761070235100,0.5459,4008.0,4007.9,1.19142]
[1761070235397,0.8175,4008.0,4007.9,0.94392]
[1761070236498,0.6593,4007.8,4007.7,0.495]
[1761070236697,0.1582,4008.0,4007.7,0.495]
[1761070236698,3.2078,4008.3,4008.2,0.495]
[1761070236907,3.5955,4008.3,4008.2,1.19139]
[1761070237094,3.8671,4008.3,4008.2,0.94389]
[1761070237495,4.31598,4008.3,4008.2,0.94389]
[1761070237700,3.8671,4008.3,4008.2,0.94389]
[1761070238200,0.3877,4008.7,4008.5,0.7425]
[1761070238406,1.10814,4008.7,4008.6,0.94385]
[1761070238703,3.59792298,4008.9,4008.8,1.19132]
[1761070238899,0.00242298,4008.9,4008.8,9.75232]
[1761070239099,0.00242298,4008.9,4008.8,14.75232]
[1761070239299,1.50118751,4010.0,4009.7,0.2475]
[1761070239600,0.3877,4009.9,4009.8,0.44871]
[1761070240197,0.39067789,4009.9,4009.8,0.45111687]
[1761070240906,0.00297789,4009.9,4009.8,9.75461687]
[1761070241903,0.3877,4010.6,4010.5,0.44863]
[1761070242304,0.3877,4010.6,4010.5,9.50363]
[1761070242504,0.3877,4010.6,4010.5,0.44863]
[1761070242705,0.3877,4010.6,4010.5,5.91863]
[1761070242902,0.39005518,4010.6,4010.5,5.91863]
[1761070243108,0.00235518,4010.6,4010.5,6.16613]
[1761070243803,0.39005518,4010.6,4010.5,9.75013]
[1761070244010,0.00235518,4010.6,4010.5,9.75013]
[1761070245207,0.3877,4010.3,4010.2,3.2078]
[1761070245409,0.8364,4009.9,4009.8,0.00240687]
[1761070247498,5.8364,4009.9,4009.8,0.00240687]
[1761070248098,0.8364,4009.9,4009.8,0.00240687]
[1761070248906,5.8364,4009.9,4009.8,0.00240687]
[1761070249601,0.3877,4009.9,4009.8,0.00240687]
[1761070251202,0.44877,4009.3,4008.6,0.334]
[1761070251407,0.4431,4009.1,4008.8,9.053]
[1761070251705,0.6179,4008.6,4008.5,12.70966]
[1761070251907,1.06675,4008.6,4008.5,12.70966]
[1761070252301,0.6179,4008.6,4008.5,12.71190994]
[1761070252500,1.06675,4008.6,4008.5,12.26304994]
[1761070252696,1.06675,4008.6,4008.5,12.71190994]
[1761070253112,1.06675,4008.6,4008.5,0.45110994]
[1761070253503,1.06675,4008.6,4008.5,0.00224994]
[1761070255199,9.27455,4008.6,4008.5,0.00224994]
[1761070255398,0.89206,4007.6,4007.5,3.2078]
[1761070255606,0.4431,4007.5,4007.4,0.97934933]
[1761070255802,0.4431,4007.5,4007.4,0.78298]
[1761070256102,0.1748,4007.4,4007.3,7.947]
[1761070256301,0.6179,4007.4,4007.3,7.947]
[1761070256509,0.62083752,4007.4,4007.3,7.94979137]
[1761070257112,0.62083752,4007.4,4007.3,0.00279137]
[1761070257304,0.62083752,4007.4,4007.3,9.05579137]
[1761070258200,0.62083752,4007.4,4007.3,0.00279137]
[1761070258609,3.82863752,4007.4,4007.3,0.00279137]
[1761070259309,4.41243752,4007.4,4007.3,0.00279137]
[1761070259505,1.12249,4007.3,4006.4,3.2078]
[1761070259707,0.7255,4006.4,4006.3,0.588]
[1761070260312,0.2824,4006.7,4006.6,0.2963]
[1761070260807,0.2824,4006.7,4006.6,0.59042485]
[1761070261010,0.4431,4006.7,4006.6,0.92442485]
[1761070261204,0.7255,4007.1,4007.0,0.2963]
[1761070261614,1.0269,4006.7,4006.6,0.00242485]
[1761070264006,0.7586,4006.0,4005.2,3.2078]
[1761070264314,0.4431,4005.3,4005.2,3.2078]
[1761070264614,0.44925,4005.1,4004.6,3.2078]
[1761070264815,0.1748,4005.5,4003.6,0.87509431]
[1761070264816,0.4431,4004.4,4003.7,3.2078]
[1761070265007,0.1748,4004.5,4003.7,3.2078]
[1761070265008,0.6179,4003.8,4003.7,3.2078]
[1761070265209,0.62017339,4003.8,4003.7,0.00218872]
[1761070265616,5.62017339,4003.8,4002.8,0.02498251]
[1761070265806,5.62017339,4003.8,4001.2,0.17]
[1761070265807,3.2078,4003.3,4001.2,0.17]
[1761070266007,3.2078,4002.1,4001.2,0.17]
[1761070266215,3.2078,4002.1,4001.9,0.17]
[1761070266411,3.2078,4002.1,4001.2,0.17]
[1761070266614,3.2078,4001.6,4001.2,0.17]
[1761070266815,3.2078,4001.6,4000.8,3.2078]
[1761070267115,3.2078,4001.6,4001.2,0.17]
[1761070267314,3.2078,4001.6,4000.8,0.0028046]
[1761070267516,3.2078,4001.6,4001.1,0.44968]
[1761070267712,3.2078,4001.6,4000.8,0.0028046]
[1761070267910,3.2078,4001.6,4001.2,0.17]
[1761070268117,3.2078,4001.6,4001.2,0.6094]
[1761070268513,0.44971,4001.0,4000.8,0.0028046]
[1761070268715,45.8,4001.5,3998.5,3.6472]
[1761070268716,0.44991,3999.2,3998.5,3.6472]
[1761070268915,3.2078,3998.8,3998.4,0.6094]
[1761070269115,3.2078,3998.8,3997.6,0.20011076]
[1761070269314,0.20120764,3998.9,3996.7,0.4394]
[1761070269315,3.2078,3998.0,3996.7,0.4394]
[1761070269515,9.032,3999.1,3996.0,0.17]
[1761070269516,3.2078,3998.8,3997.8,0.4394]
[1761070269712,3.20985498,3998.8,3998.4,0.17]
[1761070270122,3.20985498,3998.8,3998.0,0.88943]
[1761070270312,3.2078,3998.4,3998.0,0.4394]
[1761070270516,0.00205498,3998.8,3998.0,0.4394]
[1761070270717,3.2078,3998.5,3998.0,0.4394]
[1761070270926,0.00205498,3998.8,3998.5,0.44998]
[1761070271120,0.00205498,3998.8,3998.7,0.4394]
[1761070271518,0.00205498,3998.8,3998.7,3.6472]
[1761070271823,0.00205498,3998.8,3998.7,9.6564]
[1761070272215,0.00205498,3998.8,3998.7,0.4394]
[1761070272413,0.00205498,3998.8,3998.7,5.4394]
[1761070272620,3.2078,4000.0,3999.9,0.4394]
[1761070272823,0.44989,3999.4,3998.5,0.4394]
[1761070273021,3.2078,3998.6,3998.5,0.4394]
[1761070273215,3.2078,3998.9,3998.5,0.4394]
[1761070273420,3.2078,3998.9,3998.4,0.17]
[1761070273627,3.2078,3998.5,3997.8,0.00257939]
[1761070273925,3.2078,3998.0,3997.8,0.00257939]
[1761070274115,3.2078,3998.0,3997.5,0.4394]
[1761070274116,3.2078,3998.0,3997.0,0.4394]
[1761070274316,0.00310834,3998.9,3997.0,0.4394]
[1761070274317,3.2078,3997.1,3997.0,0.88955]
[1761070274525,3.2078,3997.1,3996.2,0.45024]
[1761070274830,3.2078,3997.1,3996.6,0.45018]
[1761070275031,3.2078,3997.1,3996.5,0.4502]
[1761070275326,3.2078,3997.1,3996.7,0.45018]
[1761070275529,3.2078,3997.1,3996.3,3.41195377]
[1761070275530,3.2078,3997.1,3996.9,0.45015]
[1761070275732,3.2078,3998.1,3997.9,0.45004]
[1761070275920,0.00310834,3998.9,3997.8,0.17]
[1761070275921,3.2078,3998.5,3997.8,0.17]
[1761070276427,3.65778,3998.5,3997.8,0.17]
[1761070276629,3.2078,3998.1,3997.9,0.4394]
[1761070276927,3.2078,3998.7,3997.9,0.4394]
[1761070277623,3.2078,3998.7,3997.8,3.3778]
[1761070277624,3.2078,3998.7,3998.5,0.4394]
[1761070277938,0.44998,3998.4,3997.8,0.17]
[1761070278137,3.2078,3998.0,3997.8,0.6094]
[1761070278626,3.2078,3998.0,3996.8,10.4768]
[1761070278627,0.1731,3997.8,3996.8,3.2078]
[1761070278830,0.1731,3996.6,3996.5,0.00221556]
[1761070279030,1.12548,3996.5,3994.9,0.67713986]
[1761070279230,0.19660952,3996.8,3994.2,0.2074]
[1761070279231,0.1731,3994.9,3994.3,3.6837]
[1761070279433,3.2078,3995.1,3994.1,0.4759]
[1761070279726,3.2078,3994.9,3994.4,0.4759]
[1761070279927,3.2078,3994.9,3994.5,0.4759]
[1761070279928,3.20986424,3994.9,3994.5,0.4759]
[1761070280125,3.20986424,3994.9,3994.4,0.00197938]
[1761070280126,0.1731,3994.8,3994.4,0.00197938]
[1761070280321,3.3809,3994.5,3993.6,3.2078]
[1761070280636,3.3809,3994.5,3993.2,3.2078]
[1761070280637,3.2078,3994.1,3993.2,3.2078]
[1761070280820,3.2078,3994.1,3991.9,20.25]
[1761070280821,0.5546,3993.6,3992.2,3.2078]
[1761070281023,0.5546,3993.6,3989.7,22.71193]
[1761070281024,0.5546,3993.1,3992.1,0.45067]
[1761070281233,0.5546,3993.0,3992.1,3.2078]
[1761070281431,0.2131,3994.2,3992.3,3.2078]
[1761070281432,0.5546,3993.2,3992.3,3.2078]
[1761070281821,3.2078,3992.7,3992.2,0.45067]
[1761070282031,3.2078,3992.7,3992.1,0.00323008]
[1761070282227,3.2078,3992.7,3991.6,3.40514817]
[1761070282228,3.2078,3992.3,3991.6,3.2078]
[1761070282429,0.45063,3992.5,3991.5,0.45074]
[1761070282430,0.5546,3991.8,3991.5,0.45074]
[1761070282734,0.5546,3991.4,3990.5,3.2078]
[1761070282939,0.5546,3990.5,3990.1,0.4509]
[1761070283131,0.5546,3990.5,3990.3,0.45088]
[1761070283330,0.5546,3990.3,3989.1,3.2078]
[1761070283529,0.5546,3990.3,3989.6,0.45096]
[1761070283732,0.45097,3989.6,3988.3,3.2078]
[1761070284035,0.45097,3989.6,3988.7,0.5182]
[1761070284036,3.2078,3989.0,3988.7,0.5182]
[1761070284230,3.2078,3989.4,3988.8,0.0182]
[1761070284432,3.2078,3989.4,3989.1,0.45101]
[1761070284633,3.2078,3989.8,3989.7,0.2072]
[1761070284827,3.2078,3990.2,3989.7,0.2072]
[1761070285229,3.2078,3989.8,3989.7,0.2072]
[1761070286137,8.2078,3989.8,3989.7,0.2072]
[1761070286435,0.45112,3988.2,3987.4,0.5182]
[1761070286626,3.2078,3987.9,3986.4,0.2072]
[1761070286828,3.2078,3986.5,3986.4,0.7254]
[1761070287131,3.2078,3986.5,3986.4,0.2072]
[1761070287336,3.2078,3982.7,3980.0,3.2078]
[1761070287534,2.898,3983.7,3981.5,0.45187]
[1761070287732,3.2078,3982.7,3981.5,0.00238916]
[1761070287931,3.2078,3982.2,3982.0,0.45181]
[1761070288131,3.2078,3982.7,3982.4,0.45177]
[1761070288334,3.2078,3983.6,3982.1,3.2078]
[1761070288541,0.00212549,3983.7,3983.5,0.45165]
[1761070288738,3.2078,3985.1,3983.6,9.962]
[1761070288946,6.1210966,3988.5,3983.6,9.962]
[1761070288947,3.2078,3985.9,3984.5,0.2072]
[1761070289236,3.2078,3986.6,3985.8,0.2072]
[1761070289442,3.2078,3986.6,3985.9,0.623]
[1761070289639,3.2078,3986.1,3985.8,0.2072]
[1761070289832,3.21053619,3986.6,3985.9,0.52112635]
[1761070290033,0.00273619,3986.6,3986.5,0.5182]
[1761070290231,0.00273619,3986.6,3986.5,3.726]
[1761070290431,3.2078,3988.1,3987.3,0.5182]
[1761070290732,3.2078,3988.1,3988.0,0.45114]
[1761070290940,3.2078,3988.1,3988.0,0.96934]
[1761070291245,3.2078,3989.6,3989.0,0.45103]
[1761070291549,3.2078,3989.6,3989.4,0.45098]
[1761070291739,3.2078,3990.1,3989.7,0.2072]
[1761070291942,3.2078,3991.2,3990.1,0.5182]
[1761070292135,3.2078,3991.2,3991.1,0.5182]
[1761070292136,3.21033813,3991.2,3991.1,0.5182]
[1761070292332,0.00253813,3991.2,3991.1,0.5182]
[1761070292841,5.00253813,3991.2,3990.1,0.00250339]
[1761070293042,5.00253813,3991.2,3990.1,0.52070339]
[1761070293043,3.2078,3990.2,3990.1,0.52070339]
[1761070293235,3.2078,3990.2,3990.1,0.97160339]
[1761070293236,3.19915509,3990.2,3990.1,0.97160339]
[1761070293443,0.00253813,3991.2,3990.1,0.97160339]
[1761070293444,0.00253813,3991.2,3991.1,0.45079]
[1761070293638,0.00253813,3991.2,3991.1,0.96899]
[1761070293844,0.00253813,3991.2,3991.1,5.96899]
[1761070294146,3.21033813,3991.2,3991.1,0.5182]
[1761070294543,0.00253813,3991.2,3991.1,5.5182]
[1761070294944,20.295,3993.9,3991.1,5.5182]
[1761070294945,0.45043,3994.3,3991.2,0.5182]
[1761070295143,3.2078,3992.9,3992.2,0.96887]
[1761070295343,3.21992,3992.3,3991.5,0.5182]
[1761070295545,3.21992,3992.3,3992.2,0.96887]
[1761070295546,1e-05,3992.3,3992.2,0.96887]
[1761070295846,3.2078,3993.9,3993.2,0.5182]
[1761070296047,3.2078,3993.9,3993.5,0.96871]
[1761070296235,3.2078,3993.9,3993.5,0.5182]
[1761070296440,0.5546,3993.6,3992.2,0.5182]
[1761070296637,3.2078,3992.6,3992.2,0.5182]
[1761070297246,3.2078,3992.6,3991.7,4.117]
[1761070297554,3.2078,3992.2,3992.0,0.45069]
[1761070297845,0.00302471,3992.6,3992.2,0.45066]
[1761070297846,3.21082471,3992.6,3992.2,0.45066]
[1761070298040,0.00302471,3992.6,3992.5,0.5182]
[1761070298452,0.00302471,3992.6,3992.5,5.5182]
[1761070299046,0.00302471,3992.6,3992.5,0.5182]
[1761070299249,0.00302471,3992.6,3992.5,10.6902]
[1761070299649,3.21082471,3992.6,3992.5,0.5182]
[1761070299951,3.21082471,3992.6,3992.1,0.5182]
[1761070300150,3.2078,3992.2,3992.1,0.5182]
[1761070300952,3.2078,3992.2,3992.1,5.5182]
[1761070301151,3.21082471,3992.6,3992.4,0.5182]
[1761070301460,0.00302471,3992.6,3992.5,4.17663]
[1761070301653,0.00302471,3992.6,3992.5,7.46590486]
[1761070301953,0.00302471,3992.6,3992.5,4.17663]
[1761070302255,0.00302471,3992.6,3992.5,7.41869366]
[1761070302654,4.71e-06,3992.6,3992.5,7.41869366]
[1761070302849,4.71e-06,3992.6,3992.5,4.21089366]
[1761070303049,4.71e-06,3992.6,3992.5,5.96883]
[1761070303449,4.71e-06,3992.6,3992.5,16.10783]
[1761070303654,4.71e-06,3992.6,3992.5,0.5182]
[1761070303858,0.96870561,3992.6,3991.9,0.9689]
[1761070304062,3.2078,3992.1,3992.0,4.4472]
[1761070304360,3.2078,3992.1,3992.0,0.5182]
[1761070304757,3.2078,3992.1,3992.0,6.6862]
[1761070304953,3.2078,3992.1,3992.0,0.5182]
[1761070305148,4.6271809,3992.1,3991.7,0.00301266]
[1761070305458,4.1765009,3992.1,3991.8,0.5182]
[1761070305656,4.1765009,3992.1,3991.9,5.6142]
[1761070305858,4.1765009,3992.1,3992.0,0.5182]
[1761070306051,3.2078,3992.1,3991.9,10.116]
[1761070306258,0.45071,3991.9,3991.8,10.114]
[1761070306457,0.45071,3991.9,3991.8,10.111]
[1761070307264,1.06143503,3991.9,3991.8,10.111]
[1761070307554,1.06143503,3991.9,3991.7,0.00301266]
[1761070307865,0.61072503,3991.8,3991.7,0.00301266]
[1761070308055,0.61072503,3991.8,3991.7,6.60421266]
[1761070308259,0.61072503,3991.8,3991.7,11.60421266]
[1761070308460,0.61072503,3991.8,3991.7,0.52121266]
[1761070308869,0.61072503,3991.8,3991.7,10.61721266]
[1761070309056,0.61072503,3991.8,3991.7,10.61321266]
[1761070309659,2.58473593,3991.8,3991.7,10.09501266]
[1761070309953,2.92443344,3991.8,3991.7,10.09501266]
[1761070310150,2.03013593,3991.8,3991.7,10.09501266]
[1761070310564,0.61072503,3991.8,3991.7,15.61221266]
[1761070310866,3.2078,3992.1,3992.0,1.65259]
[1761070311064,4.91288,3992.1,3991.7,0.00301266]
[1761070311268,1.70511,3991.9,3991.7,0.00301266]
[1761070311461,3.2078,3992.1,3991.7,0.00301266]
[1761070311766,1.4194009,3992.0,3991.8,6.752]
[1761070311964,1.4194009,3992.0,3991.7,0.00301266]
[1761070311965,1.70511,3991.8,3991.7,0.00301266]
[1761070312161,1.70511,3991.8,3989.8,3.2078]
[1761070312162,1.2544,3991.1,3991.0,1.088]
[1761070312365,3.2078,3991.1,3991.0,1.088]
[1761070312565,0.45076,3991.4,3991.0,1.088]
[1761070312761,3.2078,3991.1,3991.0,1.088]
[1761070313065,3.2078,3991.1,3991.0,1.08980872]
[1761070313461,4.4622,3991.1,3989.9,3.2078]
[1761070313664,3.2078,3990.4,3990.2,0.45089]
[1761070313967,3.2078,3990.4,3990.0,3.244]
[1761070314163,3.2078,3990.4,3989.5,3.2078]
[1761070314366,3.2078,3990.4,3989.9,1.2019]
[1761070314558,3.2078,3990.4,3990.3,1.2019]
[1761070315263,3.2078,3990.9,3990.7,1.2019]
[1761070315467,3.2078,3990.9,3990.8,11.2729]
[1761070316260,5.34300458,3991.6,3990.8,11.2729]
[1761070316463,0.45079,3991.1,3990.8,11.2729]
[1761070316661,3.65858,3991.2,3990.8,11.72372]
[1761070316856,3.2078,3991.2,3990.8,10.071]
[1761070317077,3.2078,3991.6,3991.2,0.45078]
[1761070317259,3.2078,3991.6,3991.4,1.65265]
[1761070317460,3.2078,3991.6,3991.5,1.2019]
[1761070318156,4.08860458,3991.6,3991.5,1.2019]
[1761070318762,4.08860458,3991.6,3991.4,0.45075]
[1761070318965,4.08860458,3991.6,3991.5,11.2409]
[1761070319162,3.2078,3992.1,3991.5,11.2409]
[1761070319361,0.22632167,3992.0,3991.9,1.65259]
[1761070320375,0.22632167,3992.0,3991.3,1.2019]
[1761070320376,3.2402351,3992.0,3991.3,1.2019]
[1761070320556,3.65855,3991.5,3991.4,5.288]
[1761070320757,1.2544,3991.4,3990.3,3.2078]
[1761070321067,1.33500115,3990.6,3990.5,0.45086]
[1761070321265,0.22632167,3990.6,3990.5,10.29976]
[1761070321463,3.2078,3991.3,3990.5,10.29976]
[1761070321464,1.33721184,3990.7,3990.5,15.29976]
[1761070321666,2.23074153,3991.6,3991.2,0.45078]
[1761070321967,1.78000153,3991.5,3991.3,11.67067]
[1761070322356,1.78000153,3991.9,3991.5,1.2019]
[1761070322567,1.78000153,3992.0,3991.9,0.4507]
[1761070322763,0.60430886,3992.0,3991.9,10.4607]
[1761070322966,0.60430886,3992.0,3991.2,3.2078]
[1761070322967,0.60430886,3992.0,3990.3,3.2078]
[1761070323161,3.2078,3991.2,3990.6,1.12712]
[1761070323362,0.60430886,3991.1,3991.0,0.4508]
[1761070323563,1.85870886,3991.1,3990.5,0.45086]
[1761070323764,1.2544,3990.4,3989.5,1.20502624]
[1761070324060,1.2544,3990.4,3989.6,10.008]
[1761070324061,1.3381433,3989.7,3989.6,10.008]
[1761070324264,1.94501271,3989.7,3989.6,10.45895]
[1761070324462,1.2544,3989.6,3989.5,0.00312624]
[1761070324663,46.31746886,3989.6,3989.5,4.56912624]
[1761070324864,45.86650886,3989.6,3989.5,4.56912624]
[1761070325063,47.64903432,3989.6,3989.5,9.48012624]
[1761070325265,45.86650886,3989.6,3989.5,9.48012624]
[1761070325464,47.64903432,3989.6,3989.5,9.48012624]
[1761070325666,1.2544,3988.7,3987.7,1.65307]
[1761070325871,4.54327569,3988.1,3987.9,0.45114]
[1761070326077,0.60430886,3988.0,3987.8,0.47623648]
[1761070326369,0.59636146,3987.9,3987.8,0.02507648]
[1761070326674,0.45124,3987.2,3986.2,0.45133]
[1761070326968,0.45124,3987.2,3986.3,9.998]
[1761070326969,1.2544,3986.5,3986.3,9.998]
[1761070327270,0.59636146,3986.4,3986.2,0.00257497]
[1761070327470,0.59636146,3986.3,3986.2,0.00257497]
[1761070327664,0.00273793,3986.5,3986.3,0.45133]
[1761070327868,0.8884949,3987.9,3987.8,0.45116]